[Event "Prague Festival Open 2022"]
[Site "Prague"]
[Date "2022.06.16"]
[Round "8.6"]
[White "Alsina Leal, Daniel"]
[Black "Raja Harshit"]
[Result "1-0"]
[ECO "B92"]
[WhiteElo "2508"]
[BlackElo "2479"]
[Annotator "TA"]
[PlyCount "59"]
[EventDate "2022.06.10"]
[EventType "swiss"]
[EventCountry "CZE"]
[SourceTitle "playchess.com"]
[Source "ChessBase"]
[SourceQuality "1"]
[TimeControl "40/5400+30:1800+30"]

{[%evp 21,59,12,14,0,24,0,0,0,25,27,64,65,285,284,357,385,418,352,472,369,626,627,637,637,615,618,786,781,772,760,735,662,782,788,759,751,885,862,1098,843]} 1. e4 {[%emt 0:00:19]} c5 {[%emt 0:00:20]} 2. Nf3 {[%emt 0:00:15]} d6 {[%emt 0:00:06]} 3. d4 {[%emt 0:00:13]} cxd4 {[%emt 0:00:07]} 4. Nxd4 {[%emt 0:00:04]} Nf6 {[%emt 0:00:12]} 5. Nc3 {[%emt 0:00:06]} a6 {[%emt 0:00:06]} 6. Be2 {[%emt 0:00:11]} e5 {[%emt 0:00:24]} 7. Nb3 {[%emt 0:00:16]} Be7 {[%emt 0:00:10]} 8. Be3 {[%emt 0:00:16]} Be6 {[%emt 0:00:08]} 9. Nd5 {[%emt 0:00:25]} Nbd7 {[%emt 0:02:26]} 10. Qd3 {[%emt 0:00:11]} Bxd5 {[%emt 0:02:11]} 11. exd5 {[%emt 0:00:22]} Rc8 {[%emt 0:06:14] is now debated instead of 11...0-0.} 12. c4 {[%emt 0:03:21] B92: Sicilian Najdorf: 6 Be2.} a5 {[%emt 0:04:51]} 13. a4 {[%emt 0:05:00]} O-O {[%emt 0:02:07]} 14. O-O {[%emt 0:00:13] The position is equal.} Ne8 {[%emt 0:07:25]} 15. Bg4 {[%emt 0:01:00]} e4 {[%emt 0:06:34]} 16. Qe2 {[%emt 0:04:55] 0x0.00222900cd2cdp-1022s more active pieces. The black rooks are badly placed.} f5 $2 {[%emt 0:08:53] [#]} (16... g6 $14) 17. Nd4 $5 $146 {[%emt 0:04:30][%mdl 8] aiming for Ne6. An interesting novelty.} ({Predecessor:} 17. Bh3 g6 18. Bd2 Ra8 19. Nd4 Nc5 20. Nb5 Bf6 21. Be3 Nc7 22. Nc3 N7a6 23. Kh1 {½-½ (46) Bilguun,S (2486)-Bhambure,S (2382) Moscow 2020}) 17... Ne5 {[%emt 0:15:42]} (17... fxg4 $2 18. Ne6) (17... Nc5 18. Bxf5) 18. Bxf5 {[%emt 0:03:47]} Rxc4 {[%emt 0:00:29]} 19. Bxe4 {[%emt 0:14:40]} Qb6 {[%emt 0:00:49]} 20. Rad1 {[%emt 0:19:47] Threatens to win with f4.} ({Less strong is} 20. Qh5 Nf6 21. Qh4 g6 $16) 20... Bg5 {[%emt 0:00:45]} (20... Qa6 21. f4 (21. Qh5 Nf6 $18) 21... Rxd4 22. Qxa6 bxa6 23. Bxd4 Nd7) 21. Bxg5 {[%emt 0:11:13] Ne6 is the strong threat. A strong pair of Bishops. White is clearly winning.} Rxd4 {[%emt 0:00:07] [#]} 22. Bxh7+ {[%emt 0:03:03][%mdl 512]} Kxh7 {[%emt 0:00:07]} 23. Be3 {[%emt 0:00:22][%mdl 64] Skewer} Rxd1 {[%emt 0:01:16]} 24. Bxb6 {[%emt 0:00:17]} Rxf1+ {[%emt 0:00:08]} 25. Kxf1 {[%emt 0:02:28]} Nf6 {[%emt 0:00:03]} 26. Bd4 {[%emt 0:07:55]} Re8 {[%emt 0:00:25]} 27. Qc2+ {[%emt 0:01:45]} Kg8 {[%emt 0:00:32]} 28. h3 {[%emt 0:06:21]} Kh8 {[%emt 0:01:40]} 29. Qc7 {[%emt 0:05:00][%csl LRa5,LRb7,LRd6]} Ne4 {[%emt 0:00:17]} 30. g3 {[%emt 0:03:22] White took control after the opening.  Weighted Error Value: White=0.17 (very precise) /Black=0.77} 1-0

[Event "Prague Festival Open 2022"]
[Site "Prague"]
[Date "2022.06.16"]
[Round "8.7"]
[White "Sankalp Gupta"]
[Black "Hrbek, Stepan"]
[Result "1-0"]
[ECO "D32"]
[WhiteElo "2505"]
[BlackElo "2303"]
[Annotator "TA"]
[PlyCount "77"]
[EventDate "2022.06.10"]
[EventType "swiss"]
[EventCountry "CZE"]
[SourceTitle "playchess.com"]
[Source "ChessBase"]
[SourceQuality "1"]
[TimeControl "40/5400+30:1800+30"]

{[%evp 24,77,26,0,0,1,6,-12,9,11,0,10,75,74,75,69,79,72,95,42,47,50,39,42,46,44,175,173,172,179,179,179,188,172,171,172,172,172,172,153,173,159,154,152,170,173,326,326,326,325,932,320,258,0,910,856]} 1. Nf3 {[%emt 0:03:37]} Nf6 {[%emt 0:00:44]} 2. c4 {[%emt 0:00:11]} e6 {[%emt 0:01:16]} 3. Nc3 {[%emt 0:00:16]} d5 {[%emt 0:00:48]} 4. e3 {[%emt 0:00:28]} c5 {[%emt 0:01:51]} 5. cxd5 {[%emt 0:01:22]} exd5 {[%emt 0:00:11]} 6. d4 {[%emt 0:00:40]} a6 {[%emt 0:00:23]} 7. Be2 {[%emt 0:01:14]} Nc6 {[%emt 0:00:28]} 8. O-O {[%emt 0:00:08]} Bd6 {[%emt 0:06:35]} 9. dxc5 {[%emt 0:06:21]} Bxc5 {[%emt 0:00:08]} 10. b3 {[%emt 0:00:19]} O-O {[%emt 0:00:54]} 11. Bb2 {[%emt 0:04:14]} Ba7 {[%emt 0:09:30]} 12. Rc1 {[%emt 0:05:20][%cal Ba1c1,Bc1c2,Bc2d2][%mdl 32]} Qd6 {[%emt 0:01:46]} 13. Rc2 {[%emt 0:04:27]} Bf5 {[%emt 0:15:35] D32: Tarrasch Defence: Sidelines and lines without g3.} 14. Rd2 {[%emt 0:01:35][%cal Rc3d5]} Rad8 {[%emt 0:00:08]} 15. Qa1 {[%emt 0:00:33][%cal Oc3d5] [#]} h6 $146 {[%emt 0:00:11] [#] The position is equal.} ({Predecessor:} 15... Rfe8 16. Rfd1 Qe6 17. Re1 h6 18. Bd1 d4 19. Nb1 dxe3 20. fxe3 Rxd2 21. Nfxd2 Bxe3+ {0-1 (39) Banas,J (2410)-Hardicsay,P (2365) Hungary 1995}) 16. Nxd5 $1 {[%emt 0:19:29]} Nxd5 {[%emt 0:01:20]} 17. Bxg7 {[%emt 0:00:13] With the idea Bc4.} Rfe8 {[%emt 0:08:19] [#]} (17... Be4 $11 18. Bxf8 Qxf8) 18. Rxd5 $1 $16 {[%emt 0:02:32] Dancing on a razor blade.} Qxd5 {[%emt 0:02:37]} 19. Bh8 $1 {[%emt 0:00:03][%csl Gh8][%cal Ra1g7]} Nd4 {[%emt 0:05:49]} 20. Nxd4 $40 {[%emt 0:04:05][%mdl 128] White wants a kill.} Kxh8 {[%emt 0:07:22]} 21. Ne6+ {[%emt 0:02:07]} (21. Nxf5+ $16 Qe5 22. Nxh6 Qxa1 23. Rxa1) 21... Bd4 $1 $14 {[%emt 0:00:07]} 22. Nxd4 {[%emt 0:00:06] aiming for Ne6+.} ({Avoid the trap} 22. Qxd4+ $2 Qxd4 23. Nxd4 Rxd4 $1 $19 {[%mdl 512]}) 22... Kg8 {[%emt 0:00:18]} 23. Rd1 {[%emt 0:07:05]} Be4 {[%emt 0:02:10]} 24. Bf1 {[%emt 0:01:57]} Rd6 {[%emt 0:04:44] [#]} (24... Qg5 $14) 25. Nf5 $1 $18 {[%emt 0:08:23][%mdl 512]} Bxf5 {[%emt 0:02:32]} 26. Rxd5 {[%emt 0:00:02]} Rxd5 {[%emt 0:00:07]} 27. h4 {[%emt 0:00:19]} Red8 {[%emt 0:02:38]} 28. Be2 {[%emt 0:02:21] Inhibits Rd1+.} Bd3 {[%emt 0:01:08]} 29. Bxd3 {[%emt 0:01:14]} Rxd3 {[%emt 0:00:06][%mdl 4096] Endgame KQ-KRR} 30. Qf6 {[%emt 0:00:12]} R8d6 {[%emt 0:00:35]} 31. Qf5 {[%emt 0:00:35]} Rd1+ {[%emt 0:02:46]} 32. Kh2 {[%emt 0:00:02]} R1d2 {[%emt 0:00:17]} 33. a4 {[%emt 0:04:08]} Rg6 {[%emt 0:06:45]} 34. g4 {[%emt 0:04:36]} Rb2 $2 {[%emt 0:01:22]} (34... Re6) 35. Qc8+ {[%emt 0:02:40]} Kh7 {[%emt 0:00:08] [#]} 36. Kg3 {[%emt 0:00:26]} ({Not} 36. Qxb7 Rxf2+ 37. Kg3 Rf1 $16) 36... Rb6 $2 {[%emt 0:01:45]} (36... Rb1 37. Qxb7 Rg1+ 38. Kh2 R1xg4 39. Qxf7+ Kh8 40. Qe8+ Rg8 41. Qe5+ R8g7) 37. Qf5+ $2 {[%emt 0:00:36]} (37. Qc7 Rf6 38. f4) 37... Kg8 {[%emt 0:00:22]} 38. Qc8+ $2 {[%emt 0:00:07]} (38. Qd5 R2xb3 39. a5) 38... Kh7 {[%emt 0:00:07]} 39. Qc7 {[%emt 0:01:09][%csl LRb6,LRf7] Weighted Error Value: White=0.34/Black=0.32} 1-0

[Event "Prague Festival Open 2022"]
[Site "Prague"]
[Date "2022.06.16"]
[Round "8.8"]
[White "Hilby, Craig"]
[Black "Stremavicius, Titas"]
[Result "0-1"]
[ECO "B15"]
[WhiteElo "2420"]
[BlackElo "2508"]
[Annotator "TA"]
[PlyCount "218"]
[EventDate "2022.06.10"]
[EventType "swiss"]
[EventCountry "CZE"]
[SourceTitle "playchess.com"]
[Source "ChessBase"]
[SourceQuality "1"]
[TimeControl "40/5400+30:1800+30"]

{[%evp 15,218,21,34,25,42,37,36,39,42,35,53,51,74,40,68,60,59,61,156,30,83,79,97,72,80,79,64,0,0,-7,0,-19,0,0,0,0,8,-8,-8,-8,-8,-8,-8,-44,-50,-51,-46,-53,-59,-55,-36,-170,-173,-279,-263,-267,-265,-604,-21,-114,-114,-114,-91,-102,-87,-100,-64,-110,-122,-156,-156,-155,-91,-104,-98,-135,-46,-48,-43,-78,-23,-27,0,0,0,-12,-12,-19,-19,-564,-556,-474,-250,-248,-250,-297,-297,-289,-62,-121,-62,-62,-62,-62,-62,-62,-58,-62,-62,-62,0,-159,-159,-224,-159,-159,-159,-159,-159,-159,-159,-159,-159,-159,-159,-159,-63,-29954,-29952,-29953,-29956,-29957,-81,-29961,-122,-664,-159,-159,-159,-159,0,-159,0,-29957,-29960,-29962,-29964,-29962,-29965,-29962,-29965,-29962,-29970,-29967,-29970,-29970,-29967,-29965,-29967,-29965,-29969,-29966,-29969,-29967,-29964,-29986,-29983,-29990,-29986,-29986,-29982,-29982,-29980,-29978,-29978,-29983,-29980,-29974,-29979,-29984,-29985,-29985,-29982,-29982,-29979,-29980,-29978,-29983,-29980,-29983,-29984,-29984,-29984,-29984,-29985,-29988,-29989,-29989,-29990,-29990,-29989,-29991,-29992,-29992,-29993]} 1. e4 {[%emt 0:00:04]} c6 {[%emt 0:00:09]} 2. d4 {[%emt 0:00:04]} d5 {[%emt 0:00:04]} 3. Nc3 {[%emt 0:00:03]} dxe4 {[%emt 0:00:08]} 4. Nxe4 {[%emt 0:00:04]} Nf6 {[%emt 0:00:11]} 5. Nxf6+ {[%emt 0:00:06]} exf6 {[%emt 0:00:07]} 6. c3 {[%emt 0:00:15]} Bd6 {[%emt 0:00:15]} 7. Bd3 {[%emt 0:00:21]} O-O {[%emt 0:00:14]} 8. Ne2 {[%emt 0:00:25]} Re8 {[%emt 0:00:30]} 9. Qc2 {[%emt 0:00:11] B15: Caro-Kann: 3 Nc3: 3...g6 and 3...dxe4 4 Nxe4 Nf6 5 Nxf6+ exf6.} h5 {[%emt 0:00:17]} 10. O-O {[%emt 0:01:06]} Nd7 {[%emt 0:04:10]} 11. Ng3 {[%emt 0:03:48] White is slightly better.} Bxg3 {[%emt 0:08:02]} 12. hxg3 {[%emt 0:00:43]} Nf8 {[%emt 0:00:25]} 13. Be3 {[%emt 0:03:18]} Bg4 {[%emt 0:09:16] [#]} 14. b4 $146 {[%emt 0:06:41]} ({Predecessor:} 14. Rae1 Qd7 15. f3 Be6 16. Re2 Rad8 17. Rd1 f5 18. b3 Ng6 19. Kf2 Ne7 20. Rh1 {½-½ (57) Grudina,M (1756)-Tsitou,D Opatija 2014}) 14... b5 {[%emt 0:04:42]} 15. a4 {[%emt 0:01:22]} a6 {[%emt 0:00:02]} 16. c4 {[%emt 0:00:45]} Qd7 {[%emt 0:07:44]} (16... bxc4 $14 17. Qxc4 (17. Bxc4 Ne6 $14) 17... Bd7) 17. Ra3 {[%emt 0:04:24]} (17. axb5 $16 axb5 18. cxb5 cxb5 19. Ra5) 17... Rac8 {[%emt 0:03:48]} (17... bxc4 $11 18. Bxc4 (18. Qxc4 Be6 $11) 18... Bf5) 18. Rc1 $16 {[%emt 0:14:10]} Qb7 {[%emt 0:11:37]} 19. Qa2 {[%emt 0:10:39]} bxc4 {[%emt 0:09:48]} 20. Qxc4 {[%emt 0:03:07]} Be6 {[%emt 0:00:03]} 21. Qc5 {[%emt 0:10:09]} (21. Qxa6 $14 Qxb4 22. Raa1) 21... Bd5 $11 {[%emt 0:00:35]} 22. Qa5 {[%emt 0:00:10]} Ra8 {[%emt 0:00:13]} 23. Bc4 {[%emt 0:00:15]} Ne6 {[%emt 0:04:01][%cal Bf8e6,Be6d4,Bd4e2][%mdl 32]} 24. Bxd5 {[%emt 0:04:59]} cxd5 {[%emt 0:00:59]} 25. Rac3 {[%emt 0:00:08]} Rab8 {[%emt 0:01:34]} 26. Rc6 {[%emt 0:01:35]} (26. Rb3 {is more complex.} Ra8 27. b5 axb5 28. Qxb5 Qa7 29. Qxd5 Qxa4 30. Rd3) 26... Qxb4 {[%emt 0:07:57]} 27. Qxd5 {[%emt 0:00:23]} Qxa4 {[%emt 0:08:29]} 28. Qxh5 {[%emt 0:00:13]} Nxd4 {[%emt 0:06:33]} 29. Rxf6 {[%emt 0:09:57]} Ne2+ $1 {[%emt 0:00:24]} ({But not} 29... gxf6 30. Qg4+ Kf8 31. Bxd4 $16) 30. Qxe2 {[%emt 0:00:03]} gxf6 {[%emt 0:00:04]} 31. Rc4 $1 {[%emt 0:00:29] Qg4+ would kill now.} Qa1+ {[%emt 0:00:48]} 32. Kh2 {[%emt 0:00:13] White threatens Rg4+ and mate.} f5 {[%emt 0:00:02] Inhibits Rg4+.} 33. Qh5 {[%emt 0:06:01]} (33. Qc2 $1 $15 Rb1 34. Bc1) 33... Qh8 $1 $19 {[%emt 0:04:47]} 34. Bh6 {[%emt 0:00:59]} (34. Qxh8+ {was called for.} Kxh8 35. g4) 34... Rb6 $1 {[%emt 0:00:09]} 35. Rh4 {[%emt 0:00:25]} Rg6 {[%emt 0:00:46] Prevents Qg5.} 36. Qxf5 $2 {[%emt 0:02:29]} (36. g4 fxg4 37. Rxg4 Qe5+ 38. Qxe5 Rxe5 39. Rh4) 36... Qf6 $2 {[%emt 0:00:35]} ({Not} 36... Qe5 37. Qc2 $11) (36... Qxh6 $19 37. Qd7 Qf8) 37. Qxf6 {[%emt 0:03:01]} (37. Qd7 $11 {keeps the balance.} Rd8 38. Qh3) 37... Rxf6 $11 {[%emt 0:00:02][%mdl 4096] Endgame KRR-KRB} 38. Be3 {[%emt 0:00:29]} Rf5 {[%emt 0:03:16]} 39. g4 {[%emt 0:02:57]} Rd5 {[%emt 0:06:03]} 40. g5 {[%emt 0:00:37]} Red8 {[%emt 0:00:35]} 41. Rc4 {[%emt 0:32:51]} (41. Bc1 $15 {should be considered.}) 41... a5 $17 {[%emt 0:30:54]} 42. f4 {[%emt 0:04:57]} Ra8 {[%emt 0:00:00]} 43. Ra4 {[%emt 0:00:00]} Kf8 {[%emt 0:00:00]} (43... Rb8 $142 $1 {[%cal Rb8b4] aiming for ...Rb4.} 44. Ra2 Rb3) 44. Bd4 {[%emt 0:00:00]} Ke7 {[%emt 0:00:00]} 45. Kg3 {[%emt 0:00:00]} Kd6 {[%emt 0:00:00]} ({Black should try} 45... Rb8 $1 $17 {White must now prevent ...Rb4.} 46. Rc4 Kd7) 46. Kg4 $1 $15 {[%emt 0:00:00]} Kc6 {[%emt 0:00:00] ...Kb5 is the strong threat.} 47. Bf6 {[%emt 0:00:00]} Kb5 {[%emt 0:00:00]} ({Better is} 47... Rd6 $17 48. f5 Kb5) 48. Re4 $1 $11 {[%emt 0:00:00]} a4 {[%emt 0:00:00]} 49. Re7 {[%emt 0:00:00]} a3 {[%emt 0:00:00] White should prevent ...a2.} 50. Rxf7 {[%emt 0:00:00]} a2 {[%emt 0:00:00] Black wants to play ...Rd6.} 51. Rc7 {[%emt 0:00:00]} Rd1 {[%emt 0:00:00][%mdl 1024] Black has compensation.} 52. f5 $2 {[%emt 0:00:00][%mdl 8192]} (52. g3 $11) 52... Ra4+ $19 {[%emt 0:00:00]} 53. Kh3 {[%emt 0:02:15]} Rd3+ {[%emt 0:00:00]} (53... Rf1 $142 54. g4 Ra3+ 55. Kg2 Rf4) 54. g3 {[%emt 0:00:15]} Raa3 $1 {[%emt 0:00:00]} 55. Rc1 {[%emt 0:00:46]} Rxg3+ {[%emt 0:00:00]} 56. Kh4 {[%emt 0:00:08]} Rh3+ {[%emt 0:00:00]} (56... Rg2 $19 {has better winning chances.} 57. Rf1 Rh2+ 58. Kg4 Ra4+ 59. Kf3 Rh3+ 60. Kg2 Raa3) 57. Kg4 $17 {[%emt 0:00:03]} Rag3+ {[%emt 0:00:00]} (57... Rhb3 $1 $17 {[%cal Rb3b1]} 58. Rf1 Rb1) 58. Kf4 $15 {[%emt 0:00:07]} Rf3+ {[%emt 0:00:00]} 59. Ke4 $1 {[%emt 0:02:13]} Re3+ {[%emt 0:00:00]} 60. Kf4 $1 {[%emt 0:00:32]} Rhf3+ {[%emt 0:03:03]} 61. Kg4 {[%emt 0:00:07]} Rf2 {[%emt 0:00:06]} 62. Ra1 $1 {[%emt 0:02:00]} Kc4 {[%emt 0:01:43] Black is more active.} (62... Re4+ $15 63. Kg3 Ree2) 63. Rc1+ $2 {[%emt 0:00:06]} (63. g6 $11) 63... Kb4 $17 {[%emt 0:00:50] And now ...Re4+ would win.} 64. Ra1 {[%emt 0:01:02]} (64. g6 $17 {was necessary.}) 64... Kb3 {[%emt 0:00:53] Strongly threatening ...Re4+.} ({Inferior is} 64... Re4+ 65. Kg3 Ree2 66. Be7+ Kc4 67. g6) 65. g6 {[%emt 0:03:21]} Re4+ {[%emt 0:00:14]} 66. Kg5 {[%emt 0:00:38] [#]} Rg2+ $1 {[%emt 0:00:52]} 67. Kh6 {[%emt 0:00:26]} Rf4 {[%emt 0:00:04]} 68. Rh1 {[%emt 0:01:38]} Rxf5 {[%emt 0:00:28]} 69. Ba1 {[%emt 0:00:04]} Kc2 {[%emt 0:04:09] Hoping for ...Rb5.} 70. g7 {[%emt 0:02:35]} Rb5 {[%emt 0:00:07]} (70... Rfg5 $17 71. Kh7 Kd3) 71. Bd4 $2 {[%emt 0:00:50][%mdl 8192]} (71. Rh5 $15 Rb1 72. Be5) 71... Rb4 {[%emt 0:01:32]} 72. Be5 {[%emt 0:00:20] [#]} Rb1 $1 {[%emt 0:00:46]} 73. Rh5 {[%emt 0:00:22]} Rb5 $2 {[%emt 0:01:23]} (73... Re1 74. Bd4 Kd3 75. Rh4 a1=Q 76. Bxa1 Rxa1 77. Kh7 Ra7 78. Kh8 Ra8+ 79. Kh7 Ke3 80. Rh6 Ra7 81. Rg6 Rh2+ 82. Kg8 Rh5 83. Kf8 Rf5+ 84. Ke8 Rc5 85. Rg3+ Kf4 86. Rg4+ Kf3 87. Rg3+ Ke4 88. Rg4+ Kd3 89. Rg3+ Ke4 90. Rg4+ Kd3 91. Rg3+ Ke4) 74. Bd4 $2 {[%emt 0:00:43][%mdl 8192]} (74. Ba1 $17 Rb1 75. Bd4) 74... Rb4 $2 {[%emt 0:00:15]} (74... Rxh5+ {mates} 75. Kxh5 Kd3 76. Ba1 Rg1 77. Bb2 Ke4 78. Kh6 Kf5 79. Kh7 Rh1+ 80. Kg8 Kg6 81. Kf8 Rf1+ 82. Ke8 Kh7 83. Kd7 a1=Q 84. Bxa1 Rxa1 85. Ke6 Rh1 86. Kf6 Kg8 87. Kf5 Re1 88. Kf6 Re2 89. Kg5 Kxg7 90. Kf4 Kf6 91. Kf3 Re7 92. Kg4 Re4+ 93. Kf3 Kf5 94. Kg3 Rf4 95. Kh3 Rg4 96. Kh2 Kf4 97. Kh3 Kf3 98. Kh2 Rh4+ 99. Kg1 Rh5 100. Kf1 Rh1#) 75. Be5 $2 {[%emt 0:00:16][%mdl 8192]} (75. Rg5 $17 Rh2+ 76. Rh5 Rxh5+ 77. Kxh5 Rxd4 78. g8=Q) 75... Rbg4 $2 {[%emt 0:00:08]} (75... Re4 $19 {[%cal Oe4e5] and Black stays clearly on top. ( -> ...Rxe5!)} 76. Ba1 Reg4) 76. Rh1 {[%emt 0:00:23]} Re4 {[%emt 0:00:41]} 77. Ba1 {[%emt 0:00:56]} Rb4 {[%emt 0:00:06]} 78. Be5 {[%emt 0:00:51]} Rb1 $2 {[%emt 0:00:09]} (78... Rbg4 $17 79. Kh7 Kd3) 79. Rh3 $2 {[%emt 0:01:08][%mdl 8192]} (79. Rh5 $11 Rbg1 80. Kh7 Rxg7+ 81. Bxg7 Rxg7+ 82. Kxg7 a1=Q+ 83. Kf7) 79... Rbg1 {[%emt 0:00:20] Black mates.} 80. Rc3+ {[%emt 0:00:15]} Kd2 {[%emt 0:00:05]} 81. Rh3 {[%emt 0:00:58]} Rg6+ {[%emt 0:00:08]} 82. Kh7 {[%emt 0:00:25] [#]} Rxg7+ $3 {[%emt 0:00:07][%mdl 512]} 83. Bxg7 {[%emt 0:00:06] [#]} (83. Kh8 Ra7) 83... Rxg7+ $1 {[%emt 0:00:03][%mdl 576] Remove Defender, Promotion} 84. Kxg7 {[%emt 0:00:04]} a1=Q+ {[%emt 0:00:06] KQ-KR} 85. Kg6 {[%emt 0:00:16]} Qe5 {[%emt 0:00:38]} 86. Rf3 {[%emt 0:00:37]} Qe4+ {[%emt 0:00:26]} 87. Rf5 {[%emt 0:00:05]} Ke3 {[%emt 0:00:03]} 88. Kf6 {[%emt 0:00:48]} Qc6+ {[%emt 0:00:10]} 89. Kg5 {[%emt 0:00:10]} Qe6 {[%emt 0:00:36]} 90. Rb5 {[%emt 0:01:03]} Qg8+ {[%emt 0:01:03]} 91. Kf6 {[%emt 0:01:00]} Qf8+ {[%emt 0:00:10]} 92. Kg5 {[%emt 0:00:14]} Ke4 {[%emt 0:01:24]} 93. Rb1 {[%emt 0:00:34]} Qf5+ {[%emt 0:02:36]} 94. Kh6 {[%emt 0:00:07]} Qa5 {[%emt 0:00:23]} 95. Rg1 {[%emt 0:00:52]} Kf4 {[%emt 0:00:48]} 96. Rf1+ {[%emt 0:00:14]} Ke5 {[%emt 0:00:02]} 97. Rg1 {[%emt 0:01:15]} Qd2+ {[%emt 0:00:11]} 98. Kg6 {[%emt 0:00:27]} Ke6 {[%emt 0:00:16]} 99. Rg4 {[%emt 0:00:45]} Qd5 {[%emt 0:00:18]} 100. Kh6 {[%emt 0:00:30]} Qf3 {[%emt 0:01:56]} 101. Rg5 {[%emt 0:00:37]} Qh3+ {[%emt 0:00:36]} 102. Kg6 {[%emt 0:00:12]} Qh4 {[%emt 0:00:11]} 103. Ra5 {[%emt 0:00:29]} Qf6+ {[%emt 0:00:29]} 104. Kh5 {[%emt 0:00:20]} Qf3+ {[%emt 0:00:47]} 105. Kg6 {[%emt 0:00:23]} Qd3+ {[%emt 0:00:09]} 106. Kh5 {[%emt 0:00:20]} Kf6 {[%emt 0:00:23][%cal Rd3h3]} 107. Kh4 {[%emt 0:01:04]} Qe4+ {[%emt 0:00:29]} 108. Kh5 {[%emt 0:00:28]} Qe2+ {[%emt 0:00:09]} 109. Kh4 {[%emt 0:00:44]} Qe1+ {[%emt 0:00:06] Weighted Error Value: White=0.37/Black=0.28 (precise)} 0-1

[Event "Prague Festival Open 2022"]
[Site "Prague"]
[Date "2022.06.16"]
[Round "8.9"]
[White "Garcia Ramos, Daniel"]
[Black "Mladek, Richard"]
[Result "1-0"]
[ECO "A13"]
[WhiteElo "2441"]
[BlackElo "2361"]
[Annotator "TA"]
[PlyCount "89"]
[EventDate "2022.06.10"]
[EventType "swiss"]
[EventCountry "CZE"]
[SourceTitle "playchess.com"]
[Source "ChessBase"]
[SourceQuality "1"]
[TimeControl "40/5400+30:1800+30"]

{[%evp 9,89,10,19,5,0,7,0,6,1,0,0,-10,-16,-14,0,0,0,0,22,26,54,27,66,14,31,27,38,15,98,35,35,24,150,158,153,120,136,134,135,72,127,112,112,89,99,107,161,154,336,214,257,227,271,292,307,285,283,291,278,283,364,358,370,373,506,331,312,278,278,278,278,278,278,278,278,261,241,264,245,116,348,333]} 1. c4 {[%emt 0:04:34]} e6 {[%emt 0:00:05]} 2. Nf3 {[%emt 0:00:12]} d5 {[%emt 0:00:06]} 3. g3 {[%emt 0:00:20]} d4 {[%emt 0:00:07]} 4. Bg2 {[%emt 0:00:24]} Nc6 {[%emt 0:00:06]} 5. O-O {[%emt 0:00:39]} Nh6 {[%emt 0:00:06]} 6. d3 {[%emt 0:09:16] A13: English Opening: 1...e6.} Nf5 {[%emt 0:00:07]} 7. Na3 {[%emt 0:00:25] [#]} Bxa3 $146 {[%emt 0:00:36]} ({Predecessor:} 7... Be7 8. Nc2 O-O 9. Rb1 a5 10. b3 e5 11. a3 f6 12. b4 axb4 13. axb4 Be6 {0-1 (40) Tomashevsky,E (2714)-Buhmann,R (2589) Berlin 2018}) 8. bxa3 {[%emt 0:00:06] The position is equal.} O-O {[%emt 0:00:25]} 9. Rb1 {[%emt 0:00:38]} Rb8 {[%emt 0:01:06]} 10. e4 {[%emt 0:11:31]} dxe3 {[%emt 0:10:08]} 11. fxe3 {[%emt 0:00:10]} e5 {[%emt 0:03:23]} 12. Qe2 {[%emt 0:01:20]} Nfe7 {[%emt 0:14:47]} 13. Bb2 {[%emt 0:14:07]} Ng6 {[%emt 0:02:19][%cal Oe5e4]} 14. Nd2 {[%emt 0:12:09]} Bd7 {[%emt 0:15:53]} 15. h4 {[%emt 0:08:57]} h6 {[%emt 0:08:30]} 16. Bc3 {[%emt 0:03:39]} (16. d4 $14) 16... Re8 {[%emt 0:07:50]} 17. a4 {[%emt 0:02:28][%cal Ba3a4,Ba4a5][%mdl 32]} Qc8 {[%emt 0:03:54]} 18. a5 {[%emt 0:06:26]} a6 {[%emt 0:07:40] [#]} (18... Bh3 $11 {remains equal.}) 19. Bd5 {[%emt 0:01:57] This bishop pair is nice.} (19. Qf2 $1 $16 {[%cal Rf2f7]} f6 20. d4) 19... Be6 $14 {[%emt 0:01:36]} 20. Qf3 {[%emt 0:06:58]} Bxd5 {[%emt 0:06:35]} (20... Nge7 $11) 21. cxd5 $16 {[%emt 0:00:07]} (21. Qxd5 Re7 $11) 21... Nd8 {[%emt 0:00:06]} 22. Rbc1 $36 {[%emt 0:04:11][%mdl 2048] White is really pushing.} Qd7 {[%emt 0:00:47]} 23. Nc4 {[%emt 0:00:50][%cal Bd2c4,Bc4e3,Be3f5,Bf5h6,Bh6g4][%mdl 32]} f6 {[%emt 0:00:34][%cal Oe5e4]} 24. Bb4 {[%emt 0:04:14]} (24. Qh5 $142 Nf8 25. e4) 24... Nf7 {[%emt 0:01:00]} (24... e4 $142 25. dxe4 Nf7) 25. e4 {[%emt 0:02:17]} Ne7 {[%emt 0:02:30]} 26. Rf2 {[%emt 0:00:39]} (26. Qh5 {with more complications.} Qh3 27. Rc2 Rbd8 28. Rb2) 26... Nc8 {[%emt 0:06:20]} 27. Rfc2 {[%emt 0:00:44] White is much more active. The black rooks are badly placed.} Na7 {[%emt 0:01:09]} (27... Rd8 $16) 28. Ne3 $18 {[%emt 0:02:30]} Rbc8 $2 {[%emt 0:00:54]} (28... Nb5 $16) 29. Nf5 {[%emt 0:00:52] Qg4 is the strong threat.} Kh7 {[%emt 0:05:03]} 30. Qg4 {[%emt 0:00:36][%csl Gf5][%cal Rg4g7]} Rg8 {[%emt 0:00:42] [#]} 31. Nxh6 $1 {[%emt 0:01:09][%mdl 512]} Qxg4 {[%emt 0:00:27]} 32. Nxg4 {[%emt 0:00:01]} c6 {[%emt 0:00:23]} 33. Bc5 {[%emt 0:01:18]} Nb5 {[%emt 0:00:01]} 34. a4 {[%emt 0:00:08]} Nbd6 {[%emt 0:01:11]} 35. Bxd6 {[%emt 0:00:18]} Nxd6 {[%emt 0:00:01]} 36. dxc6 {[%emt 0:00:07]} Rgd8 {[%emt 0:00:53]} 37. cxb7 {[%emt 0:00:41]} Rxc2 {[%emt 0:00:02]} 38. Rxc2 {[%emt 0:00:06]} Nxb7 {[%emt 0:00:09][%mdl 4096] Endgame KRN-KRN} 39. Rc7 {[%emt 0:00:22][%csl LRb7,LRf6]} Rxd3 {[%emt 0:00:11]} 40. Nxf6+ {[%emt 0:00:31]} ({Weaker is} 40. Rxb7 Rxg3+ 41. Kf2 Rxg4 $17) 40... Kg6 {[%emt 0:00:17]} 41. Ne8 {[%emt 0:31:38]} (41. Rxb7 gxf6 42. Kf2 Rd4 $16) 41... Rxg3+ {[%emt 0:31:45]} 42. Kh2 {[%emt 0:00:00]} Rb3 {[%emt 0:00:00]} 43. Rxg7+ {[%emt 0:00:00]} Kh6 {[%emt 0:00:00][%cal Ob7d6]} 44. Rg3 {[%emt 0:00:00]} (44. Rg5 $18 {and White stays clearly on top.}) 44... Rb4 $2 {[%emt 0:00:00]} (44... Nxa5 $16 {was necessary.} 45. Rg5 Nc4) 45. Nf6 {[%emt 0:00:00] Weighted Error Value: White=0.25 (precise) /Black=0.37} 1-0